{"text_format":"1","workbook":"xlsx","n_sheets":4,"sheets":["Выработка","Продуктивность","Статистика","Константы"],"not_rendered":{"charts":0,"images":0,"macros":1,"external_links":0,"defined_names":1,"comments":0,"pivot_tables":0},"unopened":[],"bounds":{"document_bytes":16777216,"sheet_cells":100000,"rows_first":2000,"rows_last":500,"rows_between":2000,"halvings":0,"cell_chars":16384,"cell_head_chars":4096},"cells_cut":0,"cells_raw":0,"read":"whole","date_system":"1900"}

{"sheet":"Выработка","index":0,"n_rows":19,"n_cols":9,"rows_kept":19,"cut":false,"hidden":false,"merged":[]}
[null,"Дата","2020-07-03","Выберите дату"]
[]
["Для продукта","Город","ФИО","Затраченное время","Продукт","% проданного","№ кампании","Продукт2","Номер значения"]
[{"$f":"$C$1&Таблица17[[#This Row],[ФИО]]","v":"44015Иванов Иван Иванович"},{"$f":"VLOOKUP(Таблица17[[#This Row],[ФИО]],Константы!H:I,2,0)","v":"Барнаул"},"Иванов Иван Иванович",{"$f":"IFERROR(VLOOKUP($C$1&Таблица17[[#This Row],[ФИО]]&Таблица17[[#This Row],[Продукт2]],Продуктивность!B:F,5,0),\"Нет\")","v":6},{"$f":"IFERROR(VLOOKUP(Таблица17[[#This Row],[Продукт2]],Константы!D:E,2,0),\"Нет\")","v":"Апельсины"},{"$f":"IFERROR(VLOOKUP($C$1&Таблица17[[#This Row],[№ кампании]]&Таблица17[[#This Row],[ФИО]],Статистика!A:G,7,0),\"Нет\")","v":9.09},{"$f":"IFERROR(VLOOKUP(Таблица17[[#This Row],[Продукт2]],Константы!D:F,3,0),\"Нет\")","v":1246},{"$f":"IF(IFERROR(INDEX(Продуктивность!$E$2:$E$2645,SMALL(IF(A4=Продуктивность!$A$2:$A$2645,ROW(Продуктивность!$E$2:$E$2645)-1),Таблица17[[#This Row],[Номер значения]])),\"Нет\")=\"Воздух\",\"Нет\",IFERROR(INDEX(Продуктивность!$E$2:$E$2645,SMALL(IF(A4=Продуктивность!$A$2:$A$2645,ROW(Продуктивность!$E$2:$E$2645)-1),Таблица17[[#This Row],[Номер значения]])),\"Нет\"))","v":"Oranges"},1]
[{"$f":"$C$1&Таблица17[[#This Row],[ФИО]]","v":"44015Иванов Иван Иванович"},{"$f":"VLOOKUP(Таблица17[[#This Row],[ФИО]],Константы!H:I,2,0)","v":"Барнаул"},"Иванов Иван Иванович","Да",{"$f":"IFERROR(VLOOKUP(Таблица17[[#This Row],[Продукт2]],Константы!D:E,2,0),\"Нет\")","v":"Нет"},{"$f":"IFERROR(VLOOKUP($C$1&Таблица17[[#This Row],[№ кампании]]&Таблица17[[#This Row],[ФИО]],Статистика!A:G,7,0),\"Нет\")","v":"Нет"},{"$f":"IFERROR(VLOOKUP(Таблица17[[#This Row],[Продукт2]],Константы!D:F,3,0),\"Нет\")","v":"Нет"},{"$f":"IF(IFERROR(INDEX(Продуктивность!$E$2:$E$2645,SMALL(IF(A5=Продуктивность!$A$2:$A$2645,ROW(Продуктивность!$E$2:$E$2645)-1),Таблица17[[#This Row],[Номер значения]])),\"Нет\")=\"Воздух\",\"Нет\",IFERROR(INDEX(Продуктивность!$E$2:$E$2645,SMALL(IF(A5=Продуктивность!$A$2:$A$2645,ROW(Продуктивность!$E$2:$E$2645)-1),Таблица17[[#This Row],[Номер значения]])),\"Нет\"))","v":"Нет"},2]
[{"$f":"$C$1&Таблица17[[#This Row],[ФИО]]","v":"44015Иванов Иван Иванович"},{"$f":"VLOOKUP(Таблица17[[#This Row],[ФИО]],Константы!H:I,2,0)","v":"Барнаул"},"Иванов Иван Иванович",{"$f":"IFERROR(VLOOKUP($C$1&Таблица17[[#This Row],[ФИО]]&Таблица17[[#This Row],[Продукт2]],Продуктивность!B:F,5,0),\"Нет\")","v":"Нет"},{"$f":"IFERROR(VLOOKUP(Таблица17[[#This Row],[Продукт2]],Константы!D:E,2,0),\"Нет\")","v":"Нет"},{"$f":"IFERROR(VLOOKUP($C$1&Таблица17[[#This Row],[№ кампании]]&Таблица17[[#This Row],[ФИО]],Статистика!A:G,7,0),\"Нет\")","v":"Нет"},{"$f":"IFERROR(VLOOKUP(Таблица17[[#This Row],[Продукт2]],Константы!D:F,3,0),\"Нет\")","v":"Нет"},{"$f":"IF(IFERROR(INDEX(Продуктивность!$E$2:$E$2645,SMALL(IF(A6=Продуктивность!$A$2:$A$2645,ROW(Продуктивность!$E$2:$E$2645)-1),Таблица17[[#This Row],[Номер значения]])),\"Нет\")=\"Воздух\",\"Нет\",IFERROR(INDEX(Продуктивность!$E$2:$E$2645,SMALL(IF(A6=Продуктивность!$A$2:$A$2645,ROW(Продуктивность!$E$2:$E$2645)-1),Таблица17[[#This Row],[Номер значения]])),\"Нет\"))","v":"Нет"},3]
[{"$f":"$C$1&Таблица17[[#This Row],[ФИО]]","v":"44015Иванов Иван Иванович"},{"$f":"VLOOKUP(Таблица17[[#This Row],[ФИО]],Константы!H:I,2,0)","v":"Барнаул"},"Иванов Иван Иванович",{"$f":"IFERROR(VLOOKUP($C$1&Таблица17[[#This Row],[ФИО]]&Таблица17[[#This Row],[Продукт2]],Продуктивность!B:F,5,0),\"Нет\")","v":"Нет"},{"$f":"IFERROR(VLOOKUP(Таблица17[[#This Row],[Продукт2]],Константы!D:E,2,0),\"Нет\")","v":"Нет"},{"$f":"IFERROR(VLOOKUP($C$1&Таблица17[[#This Row],[№ кампании]]&Таблица17[[#This Row],[ФИО]],Статистика!A:G,7,0),\"Нет\")","v":"Нет"},{"$f":"IFERROR(VLOOKUP(Таблица17[[#This Row],[Продукт2]],Константы!D:F,3,0),\"Нет\")","v":"Нет"},{"$f":"IF(IFERROR(INDEX(Продуктивность!$E$2:$E$2645,SMALL(IF(A7=Продуктивность!$A$2:$A$2645,ROW(Продуктивность!$E$2:$E$2645)-1),Таблица17[[#This Row],[Номер значения]])),\"Нет\")=\"Воздух\",\"Нет\",IFERROR(INDEX(Продуктивность!$E$2:$E$2645,SMALL(IF(A7=Продуктивность!$A$2:$A$2645,ROW(Продуктивность!$E$2:$E$2645)-1),Таблица17[[#This Row],[Номер значения]])),\"Нет\"))","v":"Нет"},4]
[{"$f":"$C$1&Таблица17[[#This Row],[ФИО]]","v":"44015Петров Петр Петрович"},{"$f":"VLOOKUP(Таблица17[[#This Row],[ФИО]],Константы!H:I,2,0)","v":"Ставрополь"},"Петров Петр Петрович",{"$f":"IFERROR(VLOOKUP($C$1&Таблица17[[#This Row],[ФИО]]&Таблица17[[#This Row],[Продукт2]],Продуктивность!B:F,5,0),\"Нет\")","v":"Нет"},{"$f":"IFERROR(VLOOKUP(Таблица17[[#This Row],[Продукт2]],Константы!D:E,2,0),\"Нет\")","v":"Нет"},{"$f":"IFERROR(VLOOKUP($C$1&Таблица17[[#This Row],[№ кампании]]&Таблица17[[#This Row],[ФИО]],Статистика!A:G,7,0),\"Нет\")","v":"Нет"},{"$f":"IFERROR(VLOOKUP(Таблица17[[#This Row],[Продукт2]],Константы!D:F,3,0),\"Нет\")","v":"Нет"},{"$f":"IF(IFERROR(INDEX(Продуктивность!$E$2:$E$2645,SMALL(IF(A8=Продуктивность!$A$2:$A$2645,ROW(Продуктивность!$E$2:$E$2645)-1),Таблица17[[#This Row],[Номер значения]])),\"Нет\")=\"Воздух\",\"Нет\",IFERROR(INDEX(Продуктивность!$E$2:$E$2645,SMALL(IF(A8=Продуктивность!$A$2:$A$2645,ROW(Продуктивность!$E$2:$E$2645)-1),Таблица17[[#This Row],[Номер значения]])),\"Нет\"))","v":"Нет"},1]
[{"$f":"$C$1&Таблица17[[#This Row],[ФИО]]","v":"44015Петров Петр Петрович"},{"$f":"VLOOKUP(Таблица17[[#This Row],[ФИО]],Константы!H:I,2,0)","v":"Ставрополь"},"Петров Петр Петрович",{"$f":"IFERROR(VLOOKUP($C$1&Таблица17[[#This Row],[ФИО]]&Таблица17[[#This Row],[Продукт2]],Продуктивность!B:F,5,0),\"Нет\")","v":"Нет"},{"$f":"IFERROR(VLOOKUP(Таблица17[[#This Row],[Продукт2]],Константы!D:E,2,0),\"Нет\")","v":"Нет"},{"$f":"IFERROR(VLOOKUP($C$1&Таблица17[[#This Row],[№ кампании]]&Таблица17[[#This Row],[ФИО]],Статистика!A:G,7,0),\"Нет\")","v":"Нет"},{"$f":"IFERROR(VLOOKUP(Таблица17[[#This Row],[Продукт2]],Константы!D:F,3,0),\"Нет\")","v":"Нет"},{"$f":"IF(IFERROR(INDEX(Продуктивность!$E$2:$E$2645,SMALL(IF(A9=Продуктивность!$A$2:$A$2645,ROW(Продуктивность!$E$2:$E$2645)-1),Таблица17[[#This Row],[Номер значения]])),\"Нет\")=\"Воздух\",\"Нет\",IFERROR(INDEX(Продуктивность!$E$2:$E$2645,SMALL(IF(A9=Продуктивность!$A$2:$A$2645,ROW(Продуктивность!$E$2:$E$2645)-1),Таблица17[[#This Row],[Номер значения]])),\"Нет\"))","v":"Нет"},2]
[{"$f":"$C$1&Таблица17[[#This Row],[ФИО]]","v":"44015Петров Петр Петрович"},{"$f":"VLOOKUP(Таблица17[[#This Row],[ФИО]],Константы!H:I,2,0)","v":"Ставрополь"},"Петров Петр Петрович",{"$f":"IFERROR(VLOOKUP($C$1&Таблица17[[#This Row],[ФИО]]&Таблица17[[#This Row],[Продукт2]],Продуктивность!B:F,5,0),\"Нет\")","v":"Нет"},{"$f":"IFERROR(VLOOKUP(Таблица17[[#This Row],[Продукт2]],Константы!D:E,2,0),\"Нет\")","v":"Нет"},{"$f":"IFERROR(VLOOKUP($C$1&Таблица17[[#This Row],[№ кампании]]&Таблица17[[#This Row],[ФИО]],Статистика!A:G,7,0),\"Нет\")","v":"Нет"},{"$f":"IFERROR(VLOOKUP(Таблица17[[#This Row],[Продукт2]],Константы!D:F,3,0),\"Нет\")","v":"Нет"},{"$f":"IF(IFERROR(INDEX(Продуктивность!$E$2:$E$2645,SMALL(IF(A10=Продуктивность!$A$2:$A$2645,ROW(Продуктивность!$E$2:$E$2645)-1),Таблица17[[#This Row],[Номер значения]])),\"Нет\")=\"Воздух\",\"Нет\",IFERROR(INDEX(Продуктивность!$E$2:$E$2645,SMALL(IF(A10=Продуктивность!$A$2:$A$2645,ROW(Продуктивность!$E$2:$E$2645)-1),Таблица17[[#This Row],[Номер значения]])),\"Нет\"))","v":"Нет"},3]
[{"$f":"$C$1&Таблица17[[#This Row],[ФИО]]","v":"44015Петров Петр Петрович"},{"$f":"VLOOKUP(Таблица17[[#This Row],[ФИО]],Константы!H:I,2,0)","v":"Ставрополь"},"Петров Петр Петрович",{"$f":"IFERROR(VLOOKUP($C$1&Таблица17[[#This Row],[ФИО]]&Таблица17[[#This Row],[Продукт2]],Продуктивность!B:F,5,0),\"Нет\")","v":"Нет"},{"$f":"IFERROR(VLOOKUP(Таблица17[[#This Row],[Продукт2]],Константы!D:E,2,0),\"Нет\")","v":"Нет"},{"$f":"IFERROR(VLOOKUP($C$1&Таблица17[[#This Row],[№ кампании]]&Таблица17[[#This Row],[ФИО]],Статистика!A:G,7,0),\"Нет\")","v":"Нет"},{"$f":"IFERROR(VLOOKUP(Таблица17[[#This Row],[Продукт2]],Константы!D:F,3,0),\"Нет\")","v":"Нет"},{"$f":"IF(IFERROR(INDEX(Продуктивность!$E$2:$E$2645,SMALL(IF(A11=Продуктивность!$A$2:$A$2645,ROW(Продуктивность!$E$2:$E$2645)-1),Таблица17[[#This Row],[Номер значения]])),\"Нет\")=\"Воздух\",\"Нет\",IFERROR(INDEX(Продуктивность!$E$2:$E$2645,SMALL(IF(A11=Продуктивность!$A$2:$A$2645,ROW(Продуктивность!$E$2:$E$2645)-1),Таблица17[[#This Row],[Номер значения]])),\"Нет\"))","v":"Нет"},4]
[{"$f":"$C$1&Таблица17[[#This Row],[ФИО]]","v":"44015Сергеев Сергей Сергеевич"},{"$f":"VLOOKUP(Таблица17[[#This Row],[ФИО]],Константы!H:I,2,0)","v":"Таганрог"},"Сергеев Сергей Сергеевич",{"$f":"IFERROR(VLOOKUP($C$1&Таблица17[[#This Row],[ФИО]]&Таблица17[[#This Row],[Продукт2]],Продуктивность!B:F,5,0),\"Нет\")","v":3},{"$f":"IFERROR(VLOOKUP(Таблица17[[#This Row],[Продукт2]],Константы!D:E,2,0),\"Нет\")","v":"Яблоки"},{"$f":"IFERROR(VLOOKUP($C$1&Таблица17[[#This Row],[№ кампании]]&Таблица17[[#This Row],[ФИО]],Статистика!A:G,7,0),\"Нет\")","v":14.58},{"$f":"IFERROR(VLOOKUP(Таблица17[[#This Row],[Продукт2]],Константы!D:F,3,0),\"Нет\")","v":1245},{"$f":"IF(IFERROR(INDEX(Продуктивность!$E$2:$E$2645,SMALL(IF(A12=Продуктивность!$A$2:$A$2645,ROW(Продуктивность!$E$2:$E$2645)-1),Таблица17[[#This Row],[Номер значения]])),\"Нет\")=\"Воздух\",\"Нет\",IFERROR(INDEX(Продуктивность!$E$2:$E$2645,SMALL(IF(A12=Продуктивность!$A$2:$A$2645,ROW(Продуктивность!$E$2:$E$2645)-1),Таблица17[[#This Row],[Номер значения]])),\"Нет\"))","v":"Apples"},1]
[{"$f":"$C$1&Таблица17[[#This Row],[ФИО]]","v":"44015Сергеев Сергей Сергеевич"},{"$f":"VLOOKUP(Таблица17[[#This Row],[ФИО]],Константы!H:I,2,0)","v":"Таганрог"},"Сергеев Сергей Сергеевич",{"$f":"IFERROR(VLOOKUP($C$1&Таблица17[[#This Row],[ФИО]]&Таблица17[[#This Row],[Продукт2]],Продуктивность!B:F,5,0),\"Нет\")","v":"Нет"},{"$f":"IFERROR(VLOOKUP(Таблица17[[#This Row],[Продукт2]],Константы!D:E,2,0),\"Нет\")","v":"Нет"},{"$f":"IFERROR(VLOOKUP($C$1&Таблица17[[#This Row],[№ кампании]]&Таблица17[[#This Row],[ФИО]],Статистика!A:G,7,0),\"Нет\")","v":"Нет"},{"$f":"IFERROR(VLOOKUP(Таблица17[[#This Row],[Продукт2]],Константы!D:F,3,0),\"Нет\")","v":"Нет"},{"$f":"IF(IFERROR(INDEX(Продуктивность!$E$2:$E$2645,SMALL(IF(A13=Продуктивность!$A$2:$A$2645,ROW(Продуктивность!$E$2:$E$2645)-1),Таблица17[[#This Row],[Номер значения]])),\"Нет\")=\"Воздух\",\"Нет\",IFERROR(INDEX(Продуктивность!$E$2:$E$2645,SMALL(IF(A13=Продуктивность!$A$2:$A$2645,ROW(Продуктивность!$E$2:$E$2645)-1),Таблица17[[#This Row],[Номер значения]])),\"Нет\"))","v":"Нет"},2]
[{"$f":"$C$1&Таблица17[[#This Row],[ФИО]]","v":"44015Сергеев Сергей Сергеевич"},{"$f":"VLOOKUP(Таблица17[[#This Row],[ФИО]],Константы!H:I,2,0)","v":"Таганрог"},"Сергеев Сергей Сергеевич",{"$f":"IFERROR(VLOOKUP($C$1&Таблица17[[#This Row],[ФИО]]&Таблица17[[#This Row],[Продукт2]],Продуктивность!B:F,5,0),\"Нет\")","v":"Нет"},{"$f":"IFERROR(VLOOKUP(Таблица17[[#This Row],[Продукт2]],Константы!D:E,2,0),\"Нет\")","v":"Нет"},{"$f":"IFERROR(VLOOKUP($C$1&Таблица17[[#This Row],[№ кампании]]&Таблица17[[#This Row],[ФИО]],Статистика!A:G,7,0),\"Нет\")","v":"Нет"},{"$f":"IFERROR(VLOOKUP(Таблица17[[#This Row],[Продукт2]],Константы!D:F,3,0),\"Нет\")","v":"Нет"},{"$f":"IF(IFERROR(INDEX(Продуктивность!$E$2:$E$2645,SMALL(IF(A14=Продуктивность!$A$2:$A$2645,ROW(Продуктивность!$E$2:$E$2645)-1),Таблица17[[#This Row],[Номер значения]])),\"Нет\")=\"Воздух\",\"Нет\",IFERROR(INDEX(Продуктивность!$E$2:$E$2645,SMALL(IF(A14=Продуктивность!$A$2:$A$2645,ROW(Продуктивность!$E$2:$E$2645)-1),Таблица17[[#This Row],[Номер значения]])),\"Нет\"))","v":"Нет"},3]
[{"$f":"$C$1&Таблица17[[#This Row],[ФИО]]","v":"44015Сергеев Сергей Сергеевич"},{"$f":"VLOOKUP(Таблица17[[#This Row],[ФИО]],Константы!H:I,2,0)","v":"Таганрог"},"Сергеев Сергей Сергеевич",{"$f":"IFERROR(VLOOKUP($C$1&Таблица17[[#This Row],[ФИО]]&Таблица17[[#This Row],[Продукт2]],Продуктивность!B:F,5,0),\"Нет\")","v":"Нет"},{"$f":"IFERROR(VLOOKUP(Таблица17[[#This Row],[Продукт2]],Константы!D:E,2,0),\"Нет\")","v":"Нет"},{"$f":"IFERROR(VLOOKUP($C$1&Таблица17[[#This Row],[№ кампании]]&Таблица17[[#This Row],[ФИО]],Статистика!A:G,7,0),\"Нет\")","v":"Нет"},{"$f":"IFERROR(VLOOKUP(Таблица17[[#This Row],[Продукт2]],Константы!D:F,3,0),\"Нет\")","v":"Нет"},{"$f":"IF(IFERROR(INDEX(Продуктивность!$E$2:$E$2645,SMALL(IF(A15=Продуктивность!$A$2:$A$2645,ROW(Продуктивность!$E$2:$E$2645)-1),Таблица17[[#This Row],[Номер значения]])),\"Нет\")=\"Воздух\",\"Нет\",IFERROR(INDEX(Продуктивность!$E$2:$E$2645,SMALL(IF(A15=Продуктивность!$A$2:$A$2645,ROW(Продуктивность!$E$2:$E$2645)-1),Таблица17[[#This Row],[Номер значения]])),\"Нет\"))","v":"Нет"},4]
[{"$f":"$C$1&Таблица17[[#This Row],[ФИО]]","v":"44015Андреев Андрей Андреевич"},{"$f":"VLOOKUP(Таблица17[[#This Row],[ФИО]],Константы!H:I,2,0)","v":"Саратов"},"Андреев Андрей Андреевич",{"$f":"IFERROR(VLOOKUP($C$1&Таблица17[[#This Row],[ФИО]]&Таблица17[[#This Row],[Продукт2]],Продуктивность!B:F,5,0),\"Нет\")","v":7},{"$f":"IFERROR(VLOOKUP(Таблица17[[#This Row],[Продукт2]],Константы!D:E,2,0),\"Нет\")","v":"Апельсины"},{"$f":"IFERROR(VLOOKUP($C$1&Таблица17[[#This Row],[№ кампании]]&Таблица17[[#This Row],[ФИО]],Статистика!A:G,7,0),\"Нет\")","v":26.67},{"$f":"IFERROR(VLOOKUP(Таблица17[[#This Row],[Продукт2]],Константы!D:F,3,0),\"Нет\")","v":1246},{"$f":"IF(IFERROR(INDEX(Продуктивность!$E$2:$E$2645,SMALL(IF(A16=Продуктивность!$A$2:$A$2645,ROW(Продуктивность!$E$2:$E$2645)-1),Таблица17[[#This Row],[Номер значения]])),\"Нет\")=\"Воздух\",\"Нет\",IFERROR(INDEX(Продуктивность!$E$2:$E$2645,SMALL(IF(A16=Продуктивность!$A$2:$A$2645,ROW(Продуктивность!$E$2:$E$2645)-1),Таблица17[[#This Row],[Номер значения]])),\"Нет\"))","v":"Oranges"},1]
[{"$f":"$C$1&Таблица17[[#This Row],[ФИО]]","v":"44015Андреев Андрей Андреевич"},{"$f":"VLOOKUP(Таблица17[[#This Row],[ФИО]],Константы!H:I,2,0)","v":"Саратов"},"Андреев Андрей Андреевич",{"$f":"IFERROR(VLOOKUP($C$1&Таблица17[[#This Row],[ФИО]]&Таблица17[[#This Row],[Продукт2]],Продуктивность!B:F,5,0),\"Нет\")","v":5},{"$f":"IFERROR(VLOOKUP(Таблица17[[#This Row],[Продукт2]],Константы!D:E,2,0),\"Нет\")","v":"Груши"},{"$f":"IFERROR(VLOOKUP($C$1&Таблица17[[#This Row],[№ кампании]]&Таблица17[[#This Row],[ФИО]],Статистика!A:G,7,0),\"Нет\")","v":7.5},{"$f":"IFERROR(VLOOKUP(Таблица17[[#This Row],[Продукт2]],Константы!D:F,3,0),\"Нет\")","v":1247},{"$f":"IF(IFERROR(INDEX(Продуктивность!$E$2:$E$2645,SMALL(IF(A17=Продуктивность!$A$2:$A$2645,ROW(Продуктивность!$E$2:$E$2645)-1),Таблица17[[#This Row],[Номер значения]])),\"Нет\")=\"Воздух\",\"Нет\",IFERROR(INDEX(Продуктивность!$E$2:$E$2645,SMALL(IF(A17=Продуктивность!$A$2:$A$2645,ROW(Продуктивность!$E$2:$E$2645)-1),Таблица17[[#This Row],[Номер значения]])),\"Нет\"))","v":"Pears"},2]
[{"$f":"$C$1&Таблица17[[#This Row],[ФИО]]","v":"44015Андреев Андрей Андреевич"},{"$f":"VLOOKUP(Таблица17[[#This Row],[ФИО]],Константы!H:I,2,0)","v":"Саратов"},"Андреев Андрей Андреевич",{"$f":"IFERROR(VLOOKUP($C$1&Таблица17[[#This Row],[ФИО]]&Таблица17[[#This Row],[Продукт2]],Продуктивность!B:F,5,0),\"Нет\")","v":"Нет"},{"$f":"IFERROR(VLOOKUP(Таблица17[[#This Row],[Продукт2]],Константы!D:E,2,0),\"Нет\")","v":"Нет"},{"$f":"IFERROR(VLOOKUP($C$1&Таблица17[[#This Row],[№ кампании]]&Таблица17[[#This Row],[ФИО]],Статистика!A:G,7,0),\"Нет\")","v":"Нет"},{"$f":"IFERROR(VLOOKUP(Таблица17[[#This Row],[Продукт2]],Константы!D:F,3,0),\"Нет\")","v":"Нет"},{"$f":"IF(IFERROR(INDEX(Продуктивность!$E$2:$E$2645,SMALL(IF(A18=Продуктивность!$A$2:$A$2645,ROW(Продуктивность!$E$2:$E$2645)-1),Таблица17[[#This Row],[Номер значения]])),\"Нет\")=\"Воздух\",\"Нет\",IFERROR(INDEX(Продуктивность!$E$2:$E$2645,SMALL(IF(A18=Продуктивность!$A$2:$A$2645,ROW(Продуктивность!$E$2:$E$2645)-1),Таблица17[[#This Row],[Номер значения]])),\"Нет\"))","v":"Нет"},3]
[{"$f":"$C$1&Таблица17[[#This Row],[ФИО]]","v":"44015Андреев Андрей Андреевич"},{"$f":"VLOOKUP(Таблица17[[#This Row],[ФИО]],Константы!H:I,2,0)","v":"Саратов"},"Андреев Андрей Андреевич",{"$f":"IFERROR(VLOOKUP($C$1&Таблица17[[#This Row],[ФИО]]&Таблица17[[#This Row],[Продукт2]],Продуктивность!B:F,5,0),\"Нет\")","v":"Нет"},{"$f":"IFERROR(VLOOKUP(Таблица17[[#This Row],[Продукт2]],Константы!D:E,2,0),\"Нет\")","v":"Нет"},{"$f":"IFERROR(VLOOKUP($C$1&Таблица17[[#This Row],[№ кампании]]&Таблица17[[#This Row],[ФИО]],Статистика!A:G,7,0),\"Нет\")","v":"Нет"},{"$f":"IFERROR(VLOOKUP(Таблица17[[#This Row],[Продукт2]],Константы!D:F,3,0),\"Нет\")","v":"Нет"},{"$f":"IF(IFERROR(INDEX(Продуктивность!$E$2:$E$2645,SMALL(IF(A19=Продуктивность!$A$2:$A$2645,ROW(Продуктивность!$E$2:$E$2645)-1),Таблица17[[#This Row],[Номер значения]])),\"Нет\")=\"Воздух\",\"Нет\",IFERROR(INDEX(Продуктивность!$E$2:$E$2645,SMALL(IF(A19=Продуктивность!$A$2:$A$2645,ROW(Продуктивность!$E$2:$E$2645)-1),Таблица17[[#This Row],[Номер значения]])),\"Нет\"))","v":"Нет"},4]

{"sheet":"Продуктивность","index":1,"n_rows":21,"n_cols":6,"rows_kept":21,"cut":false,"hidden":false,"merged":[]}
["Для продукта","Для выработки","Дата","FIO","Продукт","Время"]
[{"$f":"Таблица46[[#This Row],[Дата]]&Таблица46[[#This Row],[FIO]]","v":"44013Иванов Иван Иванович"},{"$f":"Таблица46[[#This Row],[Дата]]&Таблица46[[#This Row],[FIO]]&Таблица46[[#This Row],[Продукт]]","v":"44013Иванов Иван ИвановичApples"},"2020-07-01","Иванов Иван Иванович","Apples",{"$f":"RANDBETWEEN(1,9.9)","v":1}]
[{"$f":"Таблица46[[#This Row],[Дата]]&Таблица46[[#This Row],[FIO]]","v":"44013Иванов Иван Иванович"},{"$f":"Таблица46[[#This Row],[Дата]]&Таблица46[[#This Row],[FIO]]&Таблица46[[#This Row],[Продукт]]","v":"44013Иванов Иван ИвановичPears"},"2020-07-01","Иванов Иван Иванович","Pears",1]
[{"$f":"Таблица46[[#This Row],[Дата]]&Таблица46[[#This Row],[FIO]]","v":"44013Сергеев Сергей Сергеевич"},{"$f":"Таблица46[[#This Row],[Дата]]&Таблица46[[#This Row],[FIO]]&Таблица46[[#This Row],[Продукт]]","v":"44013Сергеев Сергей СергеевичPears"},"2020-07-01","Сергеев Сергей Сергеевич","Pears",8]
[{"$f":"Таблица46[[#This Row],[Дата]]&Таблица46[[#This Row],[FIO]]","v":"44013Андреев Андрей Андреевич"},{"$f":"Таблица46[[#This Row],[Дата]]&Таблица46[[#This Row],[FIO]]&Таблица46[[#This Row],[Продукт]]","v":"44013Андреев Андрей АндреевичPlums"},"2020-07-01","Андреев Андрей Андреевич","Plums",2]
[{"$f":"Таблица46[[#This Row],[Дата]]&Таблица46[[#This Row],[FIO]]","v":"44014Петров Петр Петрович"},{"$f":"Таблица46[[#This Row],[Дата]]&Таблица46[[#This Row],[FIO]]&Таблица46[[#This Row],[Продукт]]","v":"44014Петров Петр ПетровичPlums"},"2020-07-02","Петров Петр Петрович","Plums",5]
[{"$f":"Таблица46[[#This Row],[Дата]]&Таблица46[[#This Row],[FIO]]","v":"44014Петров Петр Петрович"},{"$f":"Таблица46[[#This Row],[Дата]]&Таблица46[[#This Row],[FIO]]&Таблица46[[#This Row],[Продукт]]","v":"44014Петров Петр ПетровичPears"},"2020-07-02","Петров Петр Петрович","Pears",5]
[{"$f":"Таблица46[[#This Row],[Дата]]&Таблица46[[#This Row],[FIO]]","v":"44014Сергеев Сергей Сергеевич"},{"$f":"Таблица46[[#This Row],[Дата]]&Таблица46[[#This Row],[FIO]]&Таблица46[[#This Row],[Продукт]]","v":"44014Сергеев Сергей СергеевичOranges"},"2020-07-02","Сергеев Сергей Сергеевич","Oranges",7]
[{"$f":"Таблица46[[#This Row],[Дата]]&Таблица46[[#This Row],[FIO]]","v":"44014Андреев Андрей Андреевич"},{"$f":"Таблица46[[#This Row],[Дата]]&Таблица46[[#This Row],[FIO]]&Таблица46[[#This Row],[Продукт]]","v":"44014Андреев Андрей АндреевичPlums"},"2020-07-02","Андреев Андрей Андреевич","Plums",5]
[{"$f":"Таблица46[[#This Row],[Дата]]&Таблица46[[#This Row],[FIO]]","v":"44015Иванов Иван Иванович"},{"$f":"Таблица46[[#This Row],[Дата]]&Таблица46[[#This Row],[FIO]]&Таблица46[[#This Row],[Продукт]]","v":"44015Иванов Иван ИвановичOranges"},"2020-07-03","Иванов Иван Иванович","Oranges",6]
[{"$f":"Таблица46[[#This Row],[Дата]]&Таблица46[[#This Row],[FIO]]","v":"44015Андреев Андрей Андреевич"},{"$f":"Таблица46[[#This Row],[Дата]]&Таблица46[[#This Row],[FIO]]&Таблица46[[#This Row],[Продукт]]","v":"44015Андреев Андрей АндреевичOranges"},"2020-07-03","Андреев Андрей Андреевич","Oranges",7]
[{"$f":"Таблица46[[#This Row],[Дата]]&Таблица46[[#This Row],[FIO]]","v":"44015Сергеев Сергей Сергеевич"},{"$f":"Таблица46[[#This Row],[Дата]]&Таблица46[[#This Row],[FIO]]&Таблица46[[#This Row],[Продукт]]","v":"44015Сергеев Сергей СергеевичApples"},"2020-07-03","Сергеев Сергей Сергеевич","Apples",3]
[{"$f":"Таблица46[[#This Row],[Дата]]&Таблица46[[#This Row],[FIO]]","v":"44015Андреев Андрей Андреевич"},{"$f":"Таблица46[[#This Row],[Дата]]&Таблица46[[#This Row],[FIO]]&Таблица46[[#This Row],[Продукт]]","v":"44015Андреев Андрей АндреевичPears"},"2020-07-03","Андреев Андрей Андреевич","Pears",5]
[{"$f":"Таблица46[[#This Row],[Дата]]&Таблица46[[#This Row],[FIO]]","v":"44016Сергеев Сергей Сергеевич"},{"$f":"Таблица46[[#This Row],[Дата]]&Таблица46[[#This Row],[FIO]]&Таблица46[[#This Row],[Продукт]]","v":"44016Сергеев Сергей СергеевичApples"},"2020-07-04","Сергеев Сергей Сергеевич","Apples",7]
[{"$f":"Таблица46[[#This Row],[Дата]]&Таблица46[[#This Row],[FIO]]","v":"44016Петров Петр Петрович"},{"$f":"Таблица46[[#This Row],[Дата]]&Таблица46[[#This Row],[FIO]]&Таблица46[[#This Row],[Продукт]]","v":"44016Петров Петр ПетровичOranges"},"2020-07-04","Петров Петр Петрович","Oranges",3]
[{"$f":"Таблица46[[#This Row],[Дата]]&Таблица46[[#This Row],[FIO]]","v":"44016Сергеев Сергей Сергеевич"},{"$f":"Таблица46[[#This Row],[Дата]]&Таблица46[[#This Row],[FIO]]&Таблица46[[#This Row],[Продукт]]","v":"44016Сергеев Сергей СергеевичPears"},"2020-07-04","Сергеев Сергей Сергеевич","Pears",7]
[{"$f":"Таблица46[[#This Row],[Дата]]&Таблица46[[#This Row],[FIO]]","v":"44016Андреев Андрей Андреевич"},{"$f":"Таблица46[[#This Row],[Дата]]&Таблица46[[#This Row],[FIO]]&Таблица46[[#This Row],[Продукт]]","v":"44016Андреев Андрей АндреевичPears"},"2020-07-04","Андреев Андрей Андреевич","Pears",6]
[{"$f":"Таблица46[[#This Row],[Дата]]&Таблица46[[#This Row],[FIO]]","v":"44017Иванов Иван Иванович"},{"$f":"Таблица46[[#This Row],[Дата]]&Таблица46[[#This Row],[FIO]]&Таблица46[[#This Row],[Продукт]]","v":"44017Иванов Иван ИвановичApples"},"2020-07-05","Иванов Иван Иванович","Apples",7]
[{"$f":"Таблица46[[#This Row],[Дата]]&Таблица46[[#This Row],[FIO]]","v":"44017Петров Петр Петрович"},{"$f":"Таблица46[[#This Row],[Дата]]&Таблица46[[#This Row],[FIO]]&Таблица46[[#This Row],[Продукт]]","v":"44017Петров Петр ПетровичPlums"},"2020-07-05","Петров Петр Петрович","Plums",4]
[{"$f":"Таблица46[[#This Row],[Дата]]&Таблица46[[#This Row],[FIO]]","v":"44017Сергеев Сергей Сергеевич"},{"$f":"Таблица46[[#This Row],[Дата]]&Таблица46[[#This Row],[FIO]]&Таблица46[[#This Row],[Продукт]]","v":"44017Сергеев Сергей СергеевичApples"},"2020-07-05","Сергеев Сергей Сергеевич","Apples",6]
[{"$f":"Таблица46[[#This Row],[Дата]]&Таблица46[[#This Row],[FIO]]","v":"44017Андреев Андрей Андреевич"},{"$f":"Таблица46[[#This Row],[Дата]]&Таблица46[[#This Row],[FIO]]&Таблица46[[#This Row],[Продукт]]","v":"44017Андреев Андрей АндреевичOranges"},"2020-07-05","Андреев Андрей Андреевич","Oranges",7]

{"sheet":"Статистика","index":2,"n_rows":21,"n_cols":7,"rows_kept":21,"cut":false,"hidden":false,"merged":[]}
["Столбец!!","Столбец1","Дата","Город","Номер продукта","ФИО","% продаж"]
[{"$f":"Таблица10[[#This Row],[Столбец1]]&Таблица10[[#This Row],[Номер продукта]]&Таблица10[[#This Row],[ФИО]]","v":"440131245Иванов Иван Иванович"},{"$f":"DATE(YEAR(Таблица10[[#This Row],[Дата]]),MONTH(Таблица10[[#This Row],[Дата]]),DAY(Таблица10[[#This Row],[Дата]]))","v":"2020-07-01"},"2020-07-01","Барнаул",1245,"Иванов Иван Иванович",38.89]
[{"$f":"Таблица10[[#This Row],[Столбец1]]&Таблица10[[#This Row],[Номер продукта]]&Таблица10[[#This Row],[ФИО]]","v":"440131247Иванов Иван Иванович"},{"$f":"DATE(YEAR(Таблица10[[#This Row],[Дата]]),MONTH(Таблица10[[#This Row],[Дата]]),DAY(Таблица10[[#This Row],[Дата]]))","v":"2020-07-01"},"2020-07-01","Барнаул",1247,"Иванов Иван Иванович",19.61]
[{"$f":"Таблица10[[#This Row],[Столбец1]]&Таблица10[[#This Row],[Номер продукта]]&Таблица10[[#This Row],[ФИО]]","v":"440131247Сергеев Сергей Сергеевич"},{"$f":"DATE(YEAR(Таблица10[[#This Row],[Дата]]),MONTH(Таблица10[[#This Row],[Дата]]),DAY(Таблица10[[#This Row],[Дата]]))","v":"2020-07-01"},"2020-07-01","Таганрог",1247,"Сергеев Сергей Сергеевич",33.33]
[{"$f":"Таблица10[[#This Row],[Столбец1]]&Таблица10[[#This Row],[Номер продукта]]&Таблица10[[#This Row],[ФИО]]","v":"440131278Андреев Андрей Андреевич"},{"$f":"DATE(YEAR(Таблица10[[#This Row],[Дата]]),MONTH(Таблица10[[#This Row],[Дата]]),DAY(Таблица10[[#This Row],[Дата]]))","v":"2020-07-01"},"2020-07-01","Саратов",1278,"Андреев Андрей Андреевич",20]
[{"$f":"Таблица10[[#This Row],[Столбец1]]&Таблица10[[#This Row],[Номер продукта]]&Таблица10[[#This Row],[ФИО]]","v":"440141278Петров Петр Петрович"},{"$f":"DATE(YEAR(Таблица10[[#This Row],[Дата]]),MONTH(Таблица10[[#This Row],[Дата]]),DAY(Таблица10[[#This Row],[Дата]]))","v":"2020-07-02"},"2020-07-02","Ставрополь",1278,"Петров Петр Петрович",20.63]
[{"$f":"Таблица10[[#This Row],[Столбец1]]&Таблица10[[#This Row],[Номер продукта]]&Таблица10[[#This Row],[ФИО]]","v":"440141247Петров Петр Петрович"},{"$f":"DATE(YEAR(Таблица10[[#This Row],[Дата]]),MONTH(Таблица10[[#This Row],[Дата]]),DAY(Таблица10[[#This Row],[Дата]]))","v":"2020-07-02"},"2020-07-02","Ставрополь",1247,"Петров Петр Петрович",25.88]
[{"$f":"Таблица10[[#This Row],[Столбец1]]&Таблица10[[#This Row],[Номер продукта]]&Таблица10[[#This Row],[ФИО]]","v":"440141246Сергеев Сергей Сергеевич"},{"$f":"DATE(YEAR(Таблица10[[#This Row],[Дата]]),MONTH(Таблица10[[#This Row],[Дата]]),DAY(Таблица10[[#This Row],[Дата]]))","v":"2020-07-02"},"2020-07-02","Таганрог",1246,"Сергеев Сергей Сергеевич",6]
[{"$f":"Таблица10[[#This Row],[Столбец1]]&Таблица10[[#This Row],[Номер продукта]]&Таблица10[[#This Row],[ФИО]]","v":"440141278Андреев Андрей Андреевич"},{"$f":"DATE(YEAR(Таблица10[[#This Row],[Дата]]),MONTH(Таблица10[[#This Row],[Дата]]),DAY(Таблица10[[#This Row],[Дата]]))","v":"2020-07-02"},"2020-07-02","Саратов",1278,"Андреев Андрей Андреевич",6]
[{"$f":"Таблица10[[#This Row],[Столбец1]]&Таблица10[[#This Row],[Номер продукта]]&Таблица10[[#This Row],[ФИО]]","v":"440151246Иванов Иван Иванович"},{"$f":"DATE(YEAR(Таблица10[[#This Row],[Дата]]),MONTH(Таблица10[[#This Row],[Дата]]),DAY(Таблица10[[#This Row],[Дата]]))","v":"2020-07-03"},"2020-07-03","Барнаул",1246,"Иванов Иван Иванович",9.09]
[{"$f":"Таблица10[[#This Row],[Столбец1]]&Таблица10[[#This Row],[Номер продукта]]&Таблица10[[#This Row],[ФИО]]","v":"440151246Андреев Андрей Андреевич"},{"$f":"DATE(YEAR(Таблица10[[#This Row],[Дата]]),MONTH(Таблица10[[#This Row],[Дата]]),DAY(Таблица10[[#This Row],[Дата]]))","v":"2020-07-03"},"2020-07-03","Саратов",1246,"Андреев Андрей Андреевич",26.67]
[{"$f":"Таблица10[[#This Row],[Столбец1]]&Таблица10[[#This Row],[Номер продукта]]&Таблица10[[#This Row],[ФИО]]","v":"440151245Сергеев Сергей Сергеевич"},{"$f":"DATE(YEAR(Таблица10[[#This Row],[Дата]]),MONTH(Таблица10[[#This Row],[Дата]]),DAY(Таблица10[[#This Row],[Дата]]))","v":"2020-07-03"},"2020-07-03","Таганрог",1245,"Сергеев Сергей Сергеевич",14.58]
[{"$f":"Таблица10[[#This Row],[Столбец1]]&Таблица10[[#This Row],[Номер продукта]]&Таблица10[[#This Row],[ФИО]]","v":"440151247Андреев Андрей Андреевич"},{"$f":"DATE(YEAR(Таблица10[[#This Row],[Дата]]),MONTH(Таблица10[[#This Row],[Дата]]),DAY(Таблица10[[#This Row],[Дата]]))","v":"2020-07-03"},"2020-07-03","Саратов",1247,"Андреев Андрей Андреевич",7.5]
[{"$f":"Таблица10[[#This Row],[Столбец1]]&Таблица10[[#This Row],[Номер продукта]]&Таблица10[[#This Row],[ФИО]]","v":"440161245Сергеев Сергей Сергеевич"},{"$f":"DATE(YEAR(Таблица10[[#This Row],[Дата]]),MONTH(Таблица10[[#This Row],[Дата]]),DAY(Таблица10[[#This Row],[Дата]]))","v":"2020-07-04"},"2020-07-04","Таганрог",1245,"Сергеев Сергей Сергеевич",10.26]
[{"$f":"Таблица10[[#This Row],[Столбец1]]&Таблица10[[#This Row],[Номер продукта]]&Таблица10[[#This Row],[ФИО]]","v":"440161246Петров Петр Петрович"},{"$f":"DATE(YEAR(Таблица10[[#This Row],[Дата]]),MONTH(Таблица10[[#This Row],[Дата]]),DAY(Таблица10[[#This Row],[Дата]]))","v":"2020-07-04"},"2020-07-04","Ставрополь",1246,"Петров Петр Петрович",8.4]
[{"$f":"Таблица10[[#This Row],[Столбец1]]&Таблица10[[#This Row],[Номер продукта]]&Таблица10[[#This Row],[ФИО]]","v":"440161247Сергеев Сергей Сергеевич"},{"$f":"DATE(YEAR(Таблица10[[#This Row],[Дата]]),MONTH(Таблица10[[#This Row],[Дата]]),DAY(Таблица10[[#This Row],[Дата]]))","v":"2020-07-04"},"2020-07-04","Таганрог",1247,"Сергеев Сергей Сергеевич",34.43]
[{"$f":"Таблица10[[#This Row],[Столбец1]]&Таблица10[[#This Row],[Номер продукта]]&Таблица10[[#This Row],[ФИО]]","v":"440161247Андреев Андрей Андреевич"},{"$f":"DATE(YEAR(Таблица10[[#This Row],[Дата]]),MONTH(Таблица10[[#This Row],[Дата]]),DAY(Таблица10[[#This Row],[Дата]]))","v":"2020-07-04"},"2020-07-04","Саратов",1247,"Андреев Андрей Андреевич",25.33]
[{"$f":"Таблица10[[#This Row],[Столбец1]]&Таблица10[[#This Row],[Номер продукта]]&Таблица10[[#This Row],[ФИО]]","v":"440171245Иванов Иван Иванович"},{"$f":"DATE(YEAR(Таблица10[[#This Row],[Дата]]),MONTH(Таблица10[[#This Row],[Дата]]),DAY(Таблица10[[#This Row],[Дата]]))","v":"2020-07-05"},"2020-07-05","Барнаул",1245,"Иванов Иван Иванович",18.75]
[{"$f":"Таблица10[[#This Row],[Столбец1]]&Таблица10[[#This Row],[Номер продукта]]&Таблица10[[#This Row],[ФИО]]","v":"440171278Петров Петр Петрович"},{"$f":"DATE(YEAR(Таблица10[[#This Row],[Дата]]),MONTH(Таблица10[[#This Row],[Дата]]),DAY(Таблица10[[#This Row],[Дата]]))","v":"2020-07-05"},"2020-07-05","Ставрополь",1278,"Петров Петр Петрович",36.619999999999997]
[{"$f":"Таблица10[[#This Row],[Столбец1]]&Таблица10[[#This Row],[Номер продукта]]&Таблица10[[#This Row],[ФИО]]","v":"440171245Сергеев Сергей Сергеевич"},{"$f":"DATE(YEAR(Таблица10[[#This Row],[Дата]]),MONTH(Таблица10[[#This Row],[Дата]]),DAY(Таблица10[[#This Row],[Дата]]))","v":"2020-07-05"},"2020-07-05","Таганрог",1245,"Сергеев Сергей Сергеевич",29.89]
[{"$f":"Таблица10[[#This Row],[Столбец1]]&Таблица10[[#This Row],[Номер продукта]]&Таблица10[[#This Row],[ФИО]]","v":"440171246Андреев Андрей Андреевич"},{"$f":"DATE(YEAR(Таблица10[[#This Row],[Дата]]),MONTH(Таблица10[[#This Row],[Дата]]),DAY(Таблица10[[#This Row],[Дата]]))","v":"2020-07-05"},"2020-07-05","Саратов",1246,"Андреев Андрей Андреевич",23.08]

{"sheet":"Константы","index":3,"n_rows":32,"n_cols":9,"rows_kept":32,"cut":false,"hidden":false,"merged":[]}
["Даты",null,"Номер кампании","Продукт","Название","Номер кампании2",null,"ФИО","Город"]
["2020-07-01",null,1245,"Apples","Яблоки",{"$f":"Таблица2810[[#This Row],[Номер кампании]]","v":1245},null,"Иванов Иван Иванович","Барнаул"]
[{"$f":"A2+1","v":"2020-07-02"},null,1246,"Oranges","Апельсины",{"$f":"Таблица2810[[#This Row],[Номер кампании]]","v":1246},null,"Петров Петр Петрович","Ставрополь"]
[{"$f":"A3+1","v":"2020-07-03"},null,1247,"Pears","Груши",{"$f":"Таблица2810[[#This Row],[Номер кампании]]","v":1247},null,"Сергеев Сергей Сергеевич","Таганрог"]
["2020-07-04",null,1278,"Plums","Сливы",{"$f":"Таблица2810[[#This Row],[Номер кампании]]","v":1278},null,"Андреев Андрей Андреевич","Саратов"]
["2020-07-05"]
["2020-07-06"]
["2020-07-07"]
["2020-07-08"]
["2020-07-09"]
["2020-07-10"]
["2020-07-11"]
["2020-07-12"]
["2020-07-13"]
["2020-07-14"]
["2020-07-15"]
["2020-07-16"]
["2020-07-17"]
["2020-07-18"]
["2020-07-19"]
["2020-07-20"]
["2020-07-21"]
["2020-07-22"]
["2020-07-23"]
["2020-07-24"]
["2020-07-25"]
["2020-07-26"]
["2020-07-27"]
["2020-07-28"]
["2020-07-29"]
["2020-07-30"]
["2020-07-31"]